fUSD/lending_fUSD_20250610
["ID","MTS","AMOUNT","RATE_DAILY","PERIOD"]
[365207706,1749534633882,-263.0,0.00017106,4]
[365207708,1749534633892,-1603.09,0.00017123,2]
[365207710,1749534633902,-461.25,0.00017123,2]
[365207712,1749534633912,-461.25,0.00017123,2]
[365207714,1749534633923,-6401.3368282,0.00017183,2]
[365207716,1749534633932,-490.0,0.0001726,2]
[365207718,1749534633943,-490.0,0.0001726,2]
[365207720,1749534633954,-490.0,0.0001726,2]
[365207722,1749534633963,-490.0,0.0001726,2]
[365207724,1749534633974,-490.0,0.0001726,2]
[365207726,1749534633984,-1122.61,0.0001726,2]
[365207728,1749534633994,-514.99355645,0.0001726,2]
[365207730,1749534634004,-490.0,0.0001726,2]
[365207732,1749534634014,-490.0,0.0001726,2]
[365207734,1749534634024,-490.0,0.0001726,2]
[365207737,1749534634034,-490.0,0.0001726,2]
[365207739,1749534634046,-490.0,0.0001726,2]
[365207741,1749534634056,-624.84,0.0001726,2]
[365207743,1749534634069,-926.27,0.0001726,2]
[365207745,1749534634080,-490.0,0.0001726,2]
[365207747,1749534634089,-490.0,0.0001726,2]
[365207749,1749534634099,-490.0,0.0001726,2]
[365207751,1749534634109,-620.05,0.0001726,2]
[365207753,1749534634120,-490.0,0.0001726,2]
[365207755,1749534634130,-282.71939426,0.0001726,2]
[365207757,1749534634141,-627.49,0.0001726,2]
[365207759,1749534634152,-490.0,0.0001726,2]
[365207761,1749534634162,-490.0,0.0001726,2]
[365207763,1749534634172,-505.17,0.0001726,2]
[365207765,1749534634182,-490.0,0.0001726,2]
[365207768,1749534634192,-1886.34,0.0001726,2]
[365207770,1749534634202,-670.19,0.0001726,2]
[365207772,1749534634212,-490.0,0.0001726,2]
[365207773,1749534634221,-490.0,0.0001726,2]
[365207776,1749534634231,-490.0,0.0001726,2]
[365207778,1749534634240,-563.77,0.0001726,2]
[365207780,1749534634250,-490.0,0.0001726,2]
[365207782,1749534634259,-766.63,0.0001726,2]
[365207784,1749534634269,-490.0,0.0001726,2]
[365207786,1749534634279,-490.0,0.0001726,2]
[365207788,1749534634289,-503.9,0.0001726,2]
[365207790,1749534634299,-6401.3368282,0.00017301,2]
[365207792,1749534634309,-945.0,0.00017366,2]
[365207794,1749534634319,-2637.0,0.00017366,2]
[365207796,1749534634329,-1159.0,0.00017366,2]
[365207798,1749534634339,-637.0,0.00017366,2]
[365207800,1749534634348,-802.0,0.00017366,2]
[365207802,1749534634358,-558.0,0.00017366,2]
[365207804,1749534634369,-1275.0,0.00017366,2]
[365207806,1749534634379,-2001.0,0.00017366,2]
[365207808,1749534634389,-927.0,0.00017366,2]
[365207810,1749534634400,-590.0,0.00017366,2]
[365207812,1749534634411,-1256.0,0.00017366,2]
[365207814,1749534634421,-4085.0,0.00017366,2]
[365207816,1749534634431,-7064.0,0.00017366,2]
[365207818,1749534634440,-155.0,0.00017366,2]
[365207820,1749534634451,-500.0,0.000174,6]
[365207822,1749534634460,-1241.12190405,0.00017419,2]
[365207825,1749534634475,-5160.21492415,0.00017419,2]
[365207827,1749534634484,-490.0,0.00017424,2]
[365207829,1749534634494,-490.0,0.00017424,2]
[365207831,1749534634504,-490.0,0.00017424,2]
[365207833,1749534634513,-490.0,0.00017424,2]
[365207835,1749534634523,-490.0,0.00017424,2]
[365207837,1749534634534,-1122.61,0.00017424,2]
[365207839,1749534634544,-490.0,0.00017424,2]
[365207841,1749534634554,-490.0,0.00017424,2]
[365207843,1749534634564,-490.0,0.00017424,2]
[365207845,1749534634573,-490.0,0.00017424,2]
[365207846,1749534634583,-336.12847424,0.00017424,2]
[365207847,1749534634592,-624.84,0.00017424,2]
[365207848,1749534634602,-926.27,0.00017424,2]
[365207849,1749534634613,-490.0,0.00017424,2]
[365207850,1749534634627,-490.0,0.00017424,2]
[365207851,1749534634636,-490.0,0.00017424,2]
[365207852,1749534634645,-620.05,0.00017424,2]
[365207853,1749534634655,-490.0,0.00017424,2]
[365207854,1749534634664,-627.49,0.00017424,2]
[365207855,1749534634673,-490.0,0.00017424,2]
[365207856,1749534634682,-287.94375689,0.00017424,2]
[365207858,1749534634694,-505.17,0.00017424,2]
[365207860,1749534634704,-490.0,0.00017424,2]
[365207862,1749534634713,-1886.34,0.00017424,2]
[365207864,1749534634723,-670.19,0.00017424,2]
[365207866,1749534634732,-490.0,0.00017424,2]
[365207868,1749534634742,-490.0,0.00017424,2]
[365207870,1749534634752,-490.0,0.00017424,2]
[365207872,1749534634762,-563.77,0.00017424,2]
[365207874,1749534634771,-490.0,0.00017424,2]
[365207876,1749534634782,-766.63,0.00017424,2]
[365207878,1749534634792,-490.0,0.00017424,2]
[365207880,1749534634801,-490.0,0.00017424,2]
[365207882,1749534634810,-503.9,0.00017424,2]
[365207884,1749534634820,-1100.0,0.000175,6]
[365207886,1749534634830,-151.09,0.00017534,2]
[365207888,1749534634840,-6401.3368282,0.00017537,2]
[365207890,1749534634850,-263.0,0.00017557,4]
[365207892,1749534634860,-490.0,0.00017589,2]
[365207894,1749534634869,-490.0,0.00017589,2]
[365207896,1749534634879,-490.0,0.00017589,2]
[365207898,1749534634888,-490.0,0.00017589,2]
[365207900,1749534634898,-490.0,0.00017589,2]
[365207902,1749534634908,-1122.61,0.00017589,2]
[365207904,1749534634918,-490.0,0.00017589,2]
[365207906,1749534634927,-490.0,0.00017589,2]
[365207908,1749534634936,-490.0,0.00017589,2]
[365207910,1749534634946,-624.84,0.00017589,2]
[365207912,1749534634955,-926.27,0.00017589,2]
[365207914,1749534634965,-490.0,0.00017589,2]
[365207916,1749534634975,-490.0,0.00017589,2]
[365207918,1749534634984,-490.0,0.00017589,2]
[365207920,1749534634993,-620.05,0.00017589,2]
[365207922,1749534635003,-490.0,0.00017589,2]
[365207924,1749534635012,-627.49,0.00017589,2]
[365207926,1749534635022,-540.73528471,0.00017589,2]
[365207928,1749534635032,-505.17,0.00017589,2]
[365207930,1749534635042,-490.0,0.00017589,2]
[365207932,1749534635051,-1886.34,0.00017589,2]
[365207934,1749534635061,-670.19,0.00017589,2]
[365207936,1749534635070,-267.84839801,0.00017589,2]
[365207938,1749534635080,-490.0,0.00017589,2]
[365207940,1749534635090,-490.0,0.00017589,2]
[365207942,1749534635101,-563.77,0.00017589,2]
[365207944,1749534635111,-490.0,0.00017589,2]
[365207946,1749534635120,-766.63,0.00017589,2]
[365207948,1749534635131,-490.0,0.00017589,2]
[365207950,1749534635140,-490.0,0.00017589,2]
[365207952,1749534635150,-503.9,0.00017589,2]
[365207954,1749534635160,-1700.0,0.000176,6]
[365207956,1749534635170,-5499.79404175,0.00017601,2]
[365208247,1749534638190,-488.59998769,0.00016438,2]
[365208248,1749534638250,-1.40001231,0.00016438,2]
[365208249,1749534638260,-490.0,0.00016438,2]
[365208250,1749534638270,-112.06514569,0.00016438,2]
[365208251,1749534638282,-377.93485431,0.00016438,2]
[365208252,1749534638292,-478.99283403,0.00016602,2]
[365208253,1749534638304,-11.00716597,0.00016602,2]
[365208254,1749534638313,-399.68551792,0.00016602,2]
[365208255,1749534638326,-165.59448208,0.00016602,2]
[365208256,1749534638335,-490.0,0.00016767,2]
[365208257,1749534638345,-212.13422357,0.00016931,2]
[365208258,1749534638356,-277.86577643,0.00016931,2]
[365208259,1749534638366,-219.64870707,0.00017095,2]
[365208260,1749534638378,-270.35129293,0.00017095,2]
[365208261,1749534638387,-421.60076016,0.00017366,2]
[365208262,1749534638404,-526.24,0.00016602,2]
[365208263,1749534638413,-461.39923984,0.00017366,2]
[365208264,1749534638423,-187.84776627,0.00017588,2]
[365208265,1749534638432,-245.04415365,0.00017588,2]
[365208266,1749534638442,-231.37665361,0.00017588,2]
[365208267,1749534638451,-254.74641265,0.00017588,2]
[365208268,1749534638461,-2054.37797398,0.00017601,2]
[365208725,1749534643331,-345.22921729,0.00016438,2]
[365208728,1749534643342,-144.77078271,0.00016438,2]
[365208730,1749534643351,-490.0,0.00016602,2]
[365208732,1749534643361,-490.0,0.00016767,2]
[365208734,1749534643370,-490.0,0.0001726,2]
[365208735,1749534643379,-667.257,0.00017366,2]
[365208738,1749534643392,-490.0,0.00017424,2]
[365208740,1749534643401,-490.0,0.00017589,2]
[365208742,1749534643412,-11747.66261789,0.00017601,2]
[365208744,1749534643422,-919.47,0.00017607,2]
[365208746,1749534643431,-461.18,0.00017607,2]
[365208748,1749534643440,-461.18,0.00017607,2]
[365208750,1749534643450,-461.18,0.00017607,2]
[365208752,1749534643459,-461.25,0.00017607,2]
[365208754,1749534643468,-1415.779223,0.0001763,2]
[365208756,1749534643478,-170.66,0.0001763,2]
[365208758,1749534643488,-170.69,0.0001763,2]
[365208760,1749534643497,-172.17,0.0001763,2]
[365208762,1749534643507,-454.79243286,0.00017651,2]
[365208764,1749534643516,-648.93592748,0.00017654,2]
[365208766,1749534643528,-2154.33543107,0.00017654,2]
[365208768,1749534643538,-3796.16697596,0.00017654,2]
[365208770,1749534643550,-2605.16985224,0.00017654,2]
[365208773,1749534643559,-326.45,0.00017673,2]
[365208774,1749534643570,-326.55,0.00017673,2]
[365208776,1749534643579,-326.5,0.00017673,2]
[365208778,1749534643589,-163.3,0.00017673,2]
[365208780,1749534643598,-2803.27135855,0.00017674,2]
[365208783,1749534643608,-2803.27135855,0.00017695,2]
[365208785,1749534643621,-2200.0,0.000177,6]
[365208787,1749534643631,-1491.0,0.000177,2]
[365208788,1749534643641,-2677.0,0.000177,2]
[365208790,1749534643650,-500.0,0.00017704,2]
[365208795,1749534643661,-500.0,0.00017704,2]
[365208797,1749534643672,-150.0,0.00017712,2]
[365208800,1749534643682,-150.0,0.00017714,2]
[365208803,1749534643692,-2803.27135855,0.00017715,2]
[365208806,1749534643702,-351.14,0.00017718,2]
[365208808,1749534643712,-600.0,0.0001772,4]
[365208811,1749534643721,-150.0,0.00017723,2]
[365208815,1749534643731,-150.0,0.00017724,2]
[365208817,1749534643741,-150.0,0.00017726,2]
[365208819,1749534643750,-1483.75038437,0.00017728,2]
[365208822,1749534643770,-5159.35961563,0.00017728,2]
[365208824,1749534643780,-2591.66,0.00017728,2]
[365208826,1749534643790,-10430.4,0.00017728,2]
[365208828,1749534643799,-2803.27135855,0.00017736,2]
[365208830,1749534643809,-150.0,0.00017743,2]
[365208832,1749534643819,-150.0,0.00017745,2]
[365208835,1749534643829,-500.0,0.00017752,2]
[365208837,1749534643839,-490.0,0.00017753,2]
[365208839,1749534643848,-490.0,0.00017753,2]
[365208840,1749534643857,-490.0,0.00017753,2]
[365208842,1749534643867,-490.0,0.00017753,2]
[365208845,1749534643878,-1122.61,0.00017753,2]
[365208847,1749534643889,-490.0,0.00017753,2]
[365208849,1749534643899,-490.0,0.00017753,2]
[365208851,1749534643908,-490.0,0.00017753,2]
[365208853,1749534643918,-624.84,0.00017753,2]
[365208855,1749534643927,-926.27,0.00017753,2]
[365208857,1749534643937,-490.0,0.00017753,2]
[365208859,1749534643946,-490.0,0.00017753,2]
[365208861,1749534643956,-490.0,0.00017753,2]
[365208863,1749534643965,-620.05,0.00017753,2]
[365208865,1749534643974,-490.0,0.00017753,2]
[365208867,1749534643983,-627.49,0.00017753,2]
[365208869,1749534643992,-505.17,0.00017753,2]
[365208871,1749534644002,-490.0,0.00017753,2]
[365208873,1749534644012,-1886.34,0.00017753,2]
[365208875,1749534644021,-670.19,0.00017753,2]
[365208877,1749534644031,-490.0,0.00017753,2]
[365208879,1749534644041,-490.0,0.00017753,2]
[365208881,1749534644051,-563.77,0.00017753,2]
[365208883,1749534644060,-490.0,0.00017753,2]
[365208885,1749534644070,-766.63,0.00017753,2]
[365208887,1749534644080,-490.0,0.00017753,2]
[365208889,1749534644089,-490.0,0.00017753,2]
[365208891,1749534644100,-503.9,0.00017753,2]
[365208893,1749534644109,-490.0,0.00017753,2]
[365208895,1749534644119,-2803.27135855,0.00017756,2]
[365208897,1749534644128,-200.0,0.00017759,2]
[365208899,1749534644137,-283.94909619,0.0001776,2]
[365208901,1749534644147,-150.0,0.00017761,2]
[365208903,1749534644157,-150.0,0.00017763,2]
[365208905,1749534644166,-150.0,0.00017766,2]
[365208907,1749534644177,-150.0,0.00017767,2]
[365208909,1749534644186,-150.0,0.00017768,2]
[365208911,1749534644196,-377.9545821,0.00017771,2]
[365208913,1749534644205,-6401.3368282,0.00017772,2]
[365208915,1749534644214,-200.0,0.00017776,2]
[365208917,1749534644224,-2803.27135855,0.00017777,2]
[365208919,1749534644233,-150.0,0.00017779,2]
[365208921,1749534644242,-150.0,0.00017785,2]
[365208923,1749534644251,-201.28382533,0.00017787,2]
[365208925,1749534644261,-200.0,0.0001779,2]
[365208927,1749534644270,-150.0,0.00017795,2]
[365208929,1749534644279,-2803.27135855,0.00017797,2]
[365208931,1749534644288,-420.98797093,0.00017798,2]
[365208933,1749534644298,-1000.0,0.000178,2]
[365208935,1749534644307,-2800.0,0.000178,6]
[365208937,1749534644317,-150.0,0.00017802,2]
[365208939,1749534644327,-150.0,0.00017805,2]
[365208941,1749534644336,-500.0,0.00017808,2]
[365208943,1749534644346,-500.0,0.00017808,2]
[365208946,1749534644355,-500.0,0.00017808,2]
[365208947,1749534644367,-500.0,0.00017808,2]
[365208948,1749534644377,-500.0,0.00017808,2]
[365208949,1749534644386,-500.0,0.00017808,2]
[365208950,1749534644396,-500.0,0.00017808,2]
[365208951,1749534644405,-500.0,0.00017808,2]
[365208952,1749534644415,-500.0,0.00017808,2]
[365208953,1749534644424,-500.0,0.00017808,2]
[365208954,1749534644434,-500.0,0.00017808,2]
[365208955,1749534644443,-500.0,0.00017808,2]
[365208957,1749534644452,-1000.0,0.00017811,2]
[365208959,1749534644461,-201.28382533,0.00017813,2]
[365208962,1749534644474,-2803.27135855,0.00017818,2]
[365208964,1749534644484,-150.0,0.00017819,2]
[365208966,1749534644494,-375.51202907,0.00017822,2]
[365208968,1749534644503,-150.0,0.00017822,2]
[365208970,1749534644513,-200.0,0.00017826,2]
[365208972,1749534644522,-512.046,0.00017828,2]
[365208974,1749534644531,-522.42710631,0.00017834,2]
[365208976,1749534644541,-377.9545821,0.00017834,2]
[365208978,1749534644550,-150.0,0.00017836,2]
[365208980,1749534644559,-150.0,0.00017836,2]
[365208982,1749534644568,-224.01670917,0.00017838,2]
[365208983,1749534644578,-2803.27135855,0.00017838,2]
[365208986,1749534644587,-150.0,0.00017839,2]
[365208987,1749534644597,-201.28382533,0.00017844,2]
[365208989,1749534644605,-500.0,0.00017845,2]
[365208991,1749534644616,-150.0,0.00017847,2]
[365208993,1749534644628,-234.2337816,0.00017849,2]
[365208995,1749534644637,-150.0,0.00017853,2]
[365208997,1749534644647,-200.0,0.00017855,2]
[365208999,1749534644656,-150.0,0.00017856,2]
[365209001,1749534644667,-377.9545821,0.00017857,2]
[365209003,1749534644677,-283.94909619,0.00017858,2]
[365209005,1749534644687,-522.42710631,0.00017863,2]
[365209007,1749534644697,-150.0,0.00017865,2]
[365209009,1749534644707,-283.94909619,0.00017865,2]
[365209011,1749534644716,-150.0,0.00017868,2]
[365209013,1749534644726,-200.0,0.0001787,2]
[365209015,1749534644735,-150.0,0.0001787,2]
[365209017,1749534644745,-150.0,0.00017872,2]
[365209019,1749534644755,-150.0,0.00017874,2]
[365209021,1749534644765,-150.0,0.00017875,2]
[365209023,1749534644774,-150.0,0.00017878,2]
[365209025,1749534644784,-200.0,0.00017883,2]
[365209027,1749534644793,-150.0,0.00017887,2]
[365209029,1749534644802,-156.587,0.00017888,2]
[365209031,1749534644811,-215.0738,0.00017888,2]
[365209033,1749534644821,-150.0,0.00017889,2]
[365209035,1749534644832,-500.0,0.00017889,2]
[365209037,1749534644841,-500.0,0.00017889,2]
[365209039,1749534644850,-219.48302286,0.0001789,2]
[365209041,1749534644860,-3606.29006486,0.0001789,2]
[365209043,1749534644869,-6401.3368282,0.0001789,2]
[365209045,1749534644879,-1903.27848768,0.0001789,2]
[365209047,1749534644888,-173.46688585,0.0001789,2]
[365209049,1749534644898,-522.42710631,0.00017892,2]
[365209051,1749534644907,-200.0,0.00017899,2]
[365209053,1749534644917,-104175.74345093,0.000179,2]
[365209055,1749534644927,-500.0,0.000179,6]
[365209057,1749534644937,-162.89523404,0.000179,2]
[365209059,1749534644946,-162.89523398,0.000179,2]
[365209061,1749534644956,-162.89523398,0.000179,2]
[365209063,1749534644965,-162.89523398,0.000179,2]
[365209065,1749534644974,-162.89523398,0.000179,2]
[365209067,1749534644983,-162.89523398,0.000179,2]
[365209069,1749534644993,-162.89523398,0.000179,2]
[365209071,1749534645003,-162.89523398,0.000179,2]
[365209073,1749534645013,-162.89523398,0.000179,2]
[365209075,1749534645022,-162.89523398,0.000179,2]
[365209077,1749534645032,-580.29,0.00017901,2]
[365209079,1749534645042,-500.0,0.00017901,2]
[365209081,1749534645052,-150.0,0.00017909,2]
[365209083,1749534645062,-490.0,0.00017917,2]
[365209085,1749534645071,-490.0,0.00017917,2]
[365209087,1749534645081,-301.13514297,0.00017917,2]
[365209089,1749534645090,-490.0,0.00017917,2]
[365209091,1749534645099,-1122.61,0.00017917,2]
[365209093,1749534645109,-490.0,0.00017917,2]
[365209095,1749534645118,-490.0,0.00017917,2]
[365209097,1749534645128,-490.0,0.00017917,2]
[365209099,1749534645137,-624.84,0.00017917,2]
[365209101,1749534645147,-926.27,0.00017917,2]
[365209103,1749534645156,-490.0,0.00017917,2]
[365209105,1749534645166,-490.0,0.00017917,2]
[365209107,1749534645175,-490.0,0.00017917,2]
[365209109,1749534645185,-620.05,0.00017917,2]
[365209111,1749534645194,-634.79489959,0.00017917,2]
[365209113,1749534645203,-627.49,0.00017917,2]
[365209115,1749534645212,-505.17,0.00017917,2]
[365209117,1749534645222,-490.0,0.00017917,2]
[365209119,1749534645231,-1886.34,0.00017917,2]
[365209121,1749534645241,-670.19,0.00017917,2]
[365209123,1749534645251,-490.0,0.00017917,2]
[365209125,1749534645260,-490.0,0.00017917,2]
[365209127,1749534645271,-563.77,0.00017917,2]
[365209129,1749534645281,-490.0,0.00017917,2]
[365209131,1749534645290,-766.63,0.00017917,2]
[365209133,1749534645300,-490.0,0.00017917,2]
[365209136,1749534645310,-490.0,0.00017917,2]
[365209138,1749534645320,-503.9,0.00017917,2]
[365209139,1749534645330,-490.0,0.00017917,2]
[365209141,1749534645340,-150.0,0.00017919,2]
[365209142,1749534645350,-150.0,0.00017928,2]
[365209144,1749534645360,-600.0,0.00017929,4]
[365209147,1749534645370,-250.0,0.00017929,2]
[365209149,1749534645379,-150.0,0.0001793,2]
[365209151,1749534645389,-150.0,0.00017935,2]
[365209153,1749534645399,-150.0,0.00017938,2]
[365209155,1749534645409,-150.0,0.00017945,2]
[365209157,1749534645419,-150.0,0.00017948,2]
[365209159,1749534645429,-150.0,0.00017948,2]
[365209161,1749534645438,-150.0,0.00017953,2]
[365209163,1749534645449,-150.0,0.00017956,2]
[365209165,1749534645458,-150.0,0.00017958,2]
[365209167,1749534645468,-1000.0,0.00017962,2]
[365209169,1749534645477,-500.0,0.00017973,2]
[365209171,1749534645487,-500.0,0.00017973,2]
[365209173,1749534645498,-500.0,0.00017973,2]
[365209175,1749534645507,-168.86451845,0.00017973,2]
[365209177,1749534645517,-159.69078861,0.00017973,2]
[365209179,1749534645527,-509.00853229,0.00017973,2]
[365209181,1749534645537,-610.96027888,0.00017973,2]
[365209183,1749534645547,-500.0,0.00017973,2]
[365209185,1749534645557,-500.68254809,0.00017973,2]
[365209187,1749534645567,-501.57459561,0.00017973,2]
[365209212,1749534645798,-500.0,0.00017973,2]
[365209214,1749534645808,-500.0,0.00017973,2]
[365209216,1749534645818,-500.0,0.00017973,2]
[365209218,1749534645828,-645.64794775,0.00017973,2]
[365209220,1749534645838,-500.0,0.00017973,2]
[365209222,1749534645848,-500.0,0.00017973,2]
[365209224,1749534645857,-501.90482839,0.00017973,2]
[365209226,1749534645867,-351.14,0.00017976,2]
[365209228,1749534645877,-1000.0,0.00017979,2]
[365209230,1749534645887,-154.61946531,0.0001798,2]
[365209232,1749534645896,-150.0,0.00017981,2]
[365209234,1749534645905,-300.0,0.00017984,2]
[365209236,1749534645915,-300.0,0.00017985,2]
[365209238,1749534645924,-151.0,0.00017985,2]
[365209240,1749534645934,-152.332326,0.00017985,2]
[365209242,1749534645943,-151.0,0.00017985,2]
[365209244,1749534645952,-151.0,0.00017985,2]
[365209246,1749534645961,-151.0,0.00017985,2]
[365209248,1749534645971,-1735.169931,0.00017985,2]
[365209250,1749534645980,-500.0,0.00017985,2]
[365209252,1749534645989,-500.0,0.00017985,2]
[365209254,1749534645999,-613.33586353,0.00017985,2]
[365209256,1749534646008,-1735.169931,0.00017985,2]
[365209258,1749534646017,-151.0,0.00017985,2]
[365209260,1749534646027,-151.0,0.00017985,2]
[365209262,1749534646037,-519.77122485,0.00017985,2]
[365209264,1749534646048,-300.0,0.00017985,2]
[365209266,1749534646057,-1987.2866923,0.00017986,2]
[365209268,1749534646066,-6681.2597039,0.00017986,2]
[365209270,1749534646075,-177.77207,0.00017986,2]
[365209272,1749534646085,-169.302,0.00017986,2]
[365209274,1749534646094,-169.302,0.00017986,2]
[365209276,1749534646103,-353.18027,0.00017986,2]
[365209278,1749534646113,-353.18027,0.00017986,2]
[365209280,1749534646122,-57437.5613333,0.00017986,2]
[365209282,1749534646131,-200.0,0.00017987,2]
[365209284,1749534646141,-200.0,0.00017987,2]
[365209286,1749534646150,-5829.9533333,0.00017987,2]
[365209288,1749534646160,-922.4233684,0.00017987,2]
[365209290,1749534646170,-2714.8927529,0.00017987,2]
[365209292,1749534646179,-300.0,0.00017988,2]
[365209294,1749534646188,-300.0,0.00017988,2]
[365209296,1749534646197,-300.0,0.00017989,2]
[365209298,1749534646207,-580.29,0.00017989,2]
[365209300,1749534646216,-500.0,0.00017989,2]
[365209302,1749534646226,-17012.07009484,0.0001799,3]
[365209304,1749534646236,-235125.09059716,0.0001799,3]
[365209332,1749534646571,-522.01967362,0.00016438,2]
[365209334,1749534646580,-13362.0581414,0.0001799,3]
[365209364,1749534646958,-172.11,0.00016438,2]
[365209365,1749534646968,-490.0,0.00016438,2]
[365209366,1749534646977,-490.0,0.00016438,2]
[365209367,1749534646986,-490.0,0.00016602,2]
[365209368,1749534646996,-490.0,0.00016767,2]
[365209369,1749534647006,-485.69545073,0.00017711,2]
[365209390,1749534677453,-300.0,0.00016437,2]
[365209391,1749534677480,-1.29329628,0.00016438,2]
[365209392,1749534694235,900.0,0.00012772,2]
[365209393,1749534696009,900.0,0.00014142,2]
[365209394,1749534697659,900.0,0.00015512,2]
[365209395,1749534760484,373.15545171,0.00014964,2]
[365209399,1749534851816,200.0,0.0002465,120]
[365209401,1749534890214,256.1,0.00013699,2]
[365209402,1749534900450,200.0,0.0002465,120]
[365209404,1749535167857,150.0,0.00016536,7]
[365209405,1749535209652,2000.0,0.00016,2]
[365209406,1749535263904,-247.0,0.00016008,2]
[365209407,1749535263932,-54.29329628,0.00016062,2]
[365209408,1749535332910,-243.27779606,0.00016008,2]
[365209409,1749535451936,245.0,0.00015008,2]
[365209410,1749535452203,245.0,0.00015463,2]
[365209411,1749535452479,245.0,0.00015917,3]
[365209412,1749535545415,160.04479363,0.00016,2]
[365209413,1749535561659,1000.0,0.00024,120]
[365209414,1749535563667,1000.0,0.00024,120]
[365209415,1749535568682,1000.0,0.00024,120]
[365209416,1749535569125,1000.0,0.00024,120]
[365209417,1749535575096,372.23,0.00015848,2]
[365209420,1749535697889,817.75,0.00013859,2]
[365209429,1749535772741,177.0,0.00015768,2]
[365209430,1749535772953,152.0,0.00016863,8]
[365209431,1749535773346,152.0,0.00016607,7]
[365209432,1749535773644,152.0,0.00016351,6]
[365209433,1749535773942,152.0,0.00016095,5]
[365209434,1749535774254,152.0,0.00015838,4]
[365209435,1749535774561,152.0,0.00015582,3]
[365209441,1749535811952,238.0,0.00015372,2]
[365209442,1749535812221,238.0,0.00015823,2]
[365209451,1749535832317,-846.42951688,0.00016054,2]
[365209456,1749535832376,-1525.43445593,0.00016054,2]
[365209457,1749535832386,-817.75,0.00016123,2]
[365209458,1749535832396,-294.76,0.00016154,2]
[365209459,1749535832405,-238.0,0.00016273,3]
[365209460,1749535832415,-12.33725735,0.00016276,2]
[365209461,1749535832427,-987.66274265,0.00016276,2]
[365209462,1749535832436,-166.61,0.00016328,2]
[365209463,1749535832446,-2076.64262837,0.00016365,2]
[365209464,1749535832456,-359.50705983,0.00016435,2]
[365209465,1749535832468,-840.49294017,0.00016435,2]
[365209466,1749535832478,-300.0,0.00016436,2]
[365209467,1749535832487,-500.0,0.00016437,2]
[365209468,1749535832497,-357.27292254,0.00016437,2]
[365209469,1749535832507,-181.68094418,0.00016437,2]
[365209470,1749535832516,-490.0,0.00016438,2]
[365209471,1749535832526,-490.0,0.00016438,2]
[365209472,1749535832535,-490.0,0.00016438,2]
[365209473,1749535832545,-480.0,0.00016438,2]
[365209474,1749535832555,-490.0,0.00016438,2]
[365209475,1749535832564,-535.13150172,0.00016438,2]
[365209476,1749535832573,-436.64900523,0.00016438,2]
[365209477,1749535832582,-490.0,0.00016438,2]
[365209478,1749535832591,-490.0,0.00016438,2]
[365209479,1749535832601,-490.0,0.00016438,2]
[365209480,1749535832611,-490.0,0.00016438,2]
[365209481,1749535832620,-490.0,0.00016438,2]
[365209482,1749535832629,-545.28,0.00016438,2]
[365209483,1749535832639,-490.0,0.00016438,2]
[365209484,1749535832648,-170.0,0.00016438,2]